[Event "Titled Tuesday Blitz February 14 Late 2023"]
[White "Bujisho, Benjamin"]
[Black "Erdogan, Anil Berk"]
[WhiteFideId "608610"]
[BlackFideId "6348173"]
[WhiteElo "2338"]
[BlackElo "2091"]
[Result "0-1"]
[Round "06"]
[TimeControl "180+2"]
[Date "2023.02.14"]
[WhiteClock "0:00:08"]
[BlackClock "0:00:07"]

1. d4 {[%clk 0:02:32]}  Nf6 {[%clk 0:02:59]} 2. c4 {[%clk 0:02:31]}  c5 {[%clk 0:03:00]} 3. d5 {[%clk 0:02:29]}  e6 {[%clk 0:03:00]} 4. Nf3 {[%clk 0:02:27]}  exd5 {[%clk 0:03:00]} 5. cxd5 {[%clk 0:02:28]}  d6 {[%clk 0:03:00]} 6. e4 {[%clk 0:02:27]}  a6 {[%clk 0:02:55]} 7. Bd3 {[%clk 0:02:25]}  g6 {[%clk 0:02:52]} 8. O-O {[%clk 0:02:25]}  Bg7 {[%clk 0:02:52]} 9. Re1 {[%clk 0:02:26]}  O-O {[%clk 0:02:49]} 10. h3 {[%clk 0:02:26]}  b5 {[%clk 0:02:43]} 11. Bc2 {[%clk 0:02:24]}  Nbd7 {[%clk 0:02:41]} 12. a4 {[%clk 0:02:18]}  Bb7 {[%clk 0:02:32]} 13. axb5 {[%clk 0:02:15]}  axb5 {[%clk 0:02:31]} 14. Rxa8 {[%clk 0:02:16]}  Qxa8 {[%clk 0:02:27]} 15. Bf4 {[%clk 0:02:17]}  Ne8 {[%clk 0:02:19]} 16. Nc3 {[%clk 0:02:10]}  Qa5 {[%clk 0:01:57]} 17. e5 {[%clk 0:02:07]}  dxe5 {[%clk 0:01:52]} 18. Nxe5 {[%clk 0:02:08]}  Nxe5 {[%clk 0:01:49]} 19. Bxe5 {[%clk 0:02:09]}  Bxe5 {[%clk 0:01:45]} 20. Rxe5 {[%clk 0:02:10]}  Nd6 {[%clk 0:01:44]} 21. Ne4 {[%clk 0:02:08]}  Qc7 {[%clk 0:00:49]} 22. Qf3 {[%clk 0:01:40]}  Nxe4 {[%clk 0:00:36]} 23. Qxe4 {[%clk 0:01:41]}  Qd6 {[%clk 0:00:33]} 24. h4 {[%clk 0:01:33]}  Rd8 {[%clk 0:00:31]} 25. h5 {[%clk 0:01:27]}  Bxd5 {[%clk 0:00:26]} 26. Qf4 {[%clk 0:01:27]}  Be6 {[%clk 0:00:18]} 27. Qf6 {[%clk 0:01:15]}  Qf8 {[%clk 0:00:09]} 28. h6 {[%clk 0:00:37]}  Rd6 {[%clk 0:00:08]} 29. Qf4 {[%clk 0:00:28]}  Qd8 {[%clk 0:00:08]} 30. f3 {[%clk 0:00:21]}  Rd5 {[%clk 0:00:03]} 31. Rxd5 {[%clk 0:00:08]}  Bxd5 {[%clk 0:00:02]} 32. Qe5 {[%clk 0:00:08]}  Be6 {[%clk 0:00:01]} 33. Be4 {[%clk 0:00:07]}  Qd4+ {[%clk 0:00:01]} 34. Qxd4 {[%clk 0:00:06]}  cxd4 {[%clk 0:00:02]} 35. b4 {[%clk 0:00:06]}  Kf8 {[%clk 0:00:01]} 36. Kf2 {[%clk 0:00:07]}  Bc4 {[%clk 0:00:02]} 37. Ke1 {[%clk 0:00:07]}  Ke7 {[%clk 0:00:02]} 38. Kd2 {[%clk 0:00:07]}  Kd6 {[%clk 0:00:03]} 39. f4 {[%clk 0:00:08]}  f5 {[%clk 0:00:03]} 40. Bb1 {[%clk 0:00:08]}  Ke6 {[%clk 0:00:03]} 41. g3 {[%clk 0:00:09]}  Kf6 {[%clk 0:00:04]} 42. Bc2 {[%clk 0:00:09]}  g5 {[%clk 0:00:04]} 43. Bd1 {[%clk 0:00:08]}  Kg6 {[%clk 0:00:04]} 44. g4 {[%clk 0:00:08]}  gxf4 {[%clk 0:00:04]} 45. gxf5+ {[%clk 0:00:07]}  Kxf5 {[%clk 0:00:05]} 46. Bc2+ {[%clk 0:00:07]}  Kg5 {[%clk 0:00:06]} 47. Bxh7 {[%clk 0:00:08]}  Kxh6 {[%clk 0:00:06]} 48. Be4 {[%clk 0:00:08]}  Kg5 {[%clk 0:00:07]} 0-1


[Site "https://www.chess.com"]

[Event "Titled Tuesday Blitz February 14 Late 2023"]
[White "Jovic, Stanoje"]
[Black "Gascon Del Nogal, Jose Rafael"]
[WhiteFideId "905020"]
[BlackFideId "3902463"]
[WhiteElo "2075"]
[BlackElo "2459"]
[Result "1-0"]
[Round "06"]
[TimeControl "180+2"]
[Date "2023.02.14"]
[WhiteClock "0:01:00"]
[BlackClock "0:00:20"]

1. c4 {[%clk 0:03:00]}  e5 {[%clk 0:02:59]} 2. g3 {[%clk 0:03:01]}  Nc6 {[%clk 0:02:56]} 3. Bg2 {[%clk 0:03:01]}  Bc5 {[%clk 0:02:57]} 4. Nc3 {[%clk 0:03:00]}  a6 {[%clk 0:02:58]} 5. Nf3 {[%clk 0:03:00]}  d6 {[%clk 0:02:56]} 6. e3 {[%clk 0:02:59]}  Ba7 {[%clk 0:02:57]} 7. d4 {[%clk 0:02:58]}  Bg4 {[%clk 0:02:54]} 8. h3 {[%clk 0:02:58]}  Bxf3 {[%clk 0:02:52]} 9. Bxf3 {[%clk 0:02:58]}  exd4 {[%clk 0:02:52]} 10. exd4 {[%clk 0:02:58]}  Nge7 {[%clk 0:02:44]} 11. g4 {[%clk 0:02:47]}  Nxd4 {[%clk 0:02:30]} 12. Bxb7 {[%clk 0:02:45]}  O-O {[%clk 0:02:26]} 13. Be3 {[%clk 0:02:39]}  Re8 {[%clk 0:02:22]} 14. O-O {[%clk 0:02:37]}  Nec6 {[%clk 0:02:08]} 15. Bxc6 {[%clk 0:02:31]}  Nxc6 {[%clk 0:02:08]} 16. Bxa7 {[%clk 0:02:30]}  Rxa7 {[%clk 0:02:08]} 17. Nd5 {[%clk 0:02:25]}  Ne5 {[%clk 0:02:05]} 18. b3 {[%clk 0:02:21]}  c6 {[%clk 0:02:04]} 19. Ne3 {[%clk 0:02:19]}  Qh4 {[%clk 0:02:01]} 20. Kh2 {[%clk 0:02:05]}  Rae7 {[%clk 0:01:44]} 21. Nf5 {[%clk 0:02:01]}  Qf6 {[%clk 0:01:21]} 22. Nxe7+ {[%clk 0:01:59]}  Rxe7 {[%clk 0:01:22]} 23. f4 {[%clk 0:01:59]}  Ng6 {[%clk 0:01:22]} 24. Qf3 {[%clk 0:01:47]}  Qb2+ {[%clk 0:01:19]} 25. Kh1 {[%clk 0:01:41]}  Re2 {[%clk 0:01:02]} 26. Rae1 {[%clk 0:01:33]}  Rh2+ {[%clk 0:00:51]} 27. Kg1 {[%clk 0:01:32]}  h5 {[%clk 0:00:52]} 28. Rf2 {[%clk 0:01:27]}  Rxf2 {[%clk 0:00:51]} 29. Qxf2 {[%clk 0:01:27]}  Qc3 {[%clk 0:00:51]} 30. gxh5 {[%clk 0:01:20]}  Nf8 {[%clk 0:00:44]} 31. Re3 {[%clk 0:01:17]}  Qa1+ {[%clk 0:00:38]} 32. Kh2 {[%clk 0:01:14]}  Qf6 {[%clk 0:00:32]} 33. Re8 {[%clk 0:01:06]}  Qf5 {[%clk 0:00:28]} 34. h6 {[%clk 0:01:04]}  gxh6 {[%clk 0:00:20]} 35. Qg3+ {[%clk 0:01:00]} 1-0


[Site "https://www.chess.com"]

[Event "Titled Tuesday Blitz February 14 Late 2023"]
[White "Fiorito, Joaquin"]
[Black "Dzida, Kamil"]
[WhiteFideId "180173"]
[BlackFideId "21828652"]
[WhiteElo "2405"]
[BlackElo "2352"]
[Result "1-0"]
[Round "06"]
[TimeControl "180+2"]
[Date "2023.02.14"]
[WhiteClock "0:00:18"]
[BlackClock "0:00:07"]

1. d4 {[%clk 0:03:00]}  Nf6 {[%clk 0:02:59]} 2. Nc3 {[%clk 0:03:01]}  d5 {[%clk 0:02:59]} 3. Bf4 {[%clk 0:03:01]}  e6 {[%clk 0:02:55]} 4. Nb5 {[%clk 0:03:01]}  Na6 {[%clk 0:02:55]} 5. e3 {[%clk 0:03:01]}  c6 {[%clk 0:02:54]} 6. Nc3 {[%clk 0:03:01]}  Be7 {[%clk 0:02:51]} 7. Bxa6 {[%clk 0:03:00]}  bxa6 {[%clk 0:02:51]} 8. Nf3 {[%clk 0:03:01]}  O-O {[%clk 0:02:47]} 9. Ne5 {[%clk 0:03:02]}  Bb7 {[%clk 0:02:25]} 10. O-O {[%clk 0:02:54]}  c5 {[%clk 0:02:20]} 11. Na4 {[%clk 0:02:39]}  c4 {[%clk 0:02:13]} 12. b3 {[%clk 0:02:35]}  Qa5 {[%clk 0:01:53]} 13. h3 {[%clk 0:02:20]}  Rfc8 {[%clk 0:01:52]} 14. f3 {[%clk 0:02:18]}  Bc6 {[%clk 0:01:45]} 15. Nxc6 {[%clk 0:02:16]}  Rxc6 {[%clk 0:01:46]} 16. c3 {[%clk 0:02:12]}  cxb3 {[%clk 0:01:11]} 17. axb3 {[%clk 0:02:11]}  Qb5 {[%clk 0:01:11]} 18. Bg5 {[%clk 0:01:06]}  h6 {[%clk 0:01:04]} 19. Bxf6 {[%clk 0:01:05]}  Bxf6 {[%clk 0:01:04]} 20. Nc5 {[%clk 0:01:05]}  Be7 {[%clk 0:01:02]} 21. b4 {[%clk 0:01:04]}  Bxc5 {[%clk 0:00:48]} 22. bxc5 {[%clk 0:00:54]}  e5 {[%clk 0:00:47]} 23. Rb1 {[%clk 0:00:50]}  Qc4 {[%clk 0:00:41]} 24. Qc2 {[%clk 0:00:50]}  exd4 {[%clk 0:00:27]} 25. exd4 {[%clk 0:00:51]}  Re8 {[%clk 0:00:27]} 26. Rb4 {[%clk 0:00:27]}  Qe2 {[%clk 0:00:24]} 27. Qxe2 {[%clk 0:00:26]}  Rxe2 {[%clk 0:00:24]} 28. Rf2 {[%clk 0:00:26]}  Re1+ {[%clk 0:00:22]} 29. Kh2 {[%clk 0:00:25]}  Rc1 {[%clk 0:00:21]} 30. Rb3 {[%clk 0:00:25]}  Kf8 {[%clk 0:00:19]} 31. Ra2 {[%clk 0:00:25]}  Ke7 {[%clk 0:00:18]} 32. Raa3 {[%clk 0:00:25]}  Kd7 {[%clk 0:00:18]} 33. Rb7+ {[%clk 0:00:25]}  Rc7 {[%clk 0:00:18]} 34. Rb8 {[%clk 0:00:23]}  Rc6 {[%clk 0:00:13]} 35. Rf8 {[%clk 0:00:20]}  Ke7 {[%clk 0:00:13]} 36. Ra8 {[%clk 0:00:21]}  Rc2 {[%clk 0:00:11]} 37. Rxa7+ {[%clk 0:00:20]}  Ke8 {[%clk 0:00:10]} 38. Ra8+ {[%clk 0:00:19]}  Kd7 {[%clk 0:00:10]} 39. Ra7+ {[%clk 0:00:20]}  Ke8 {[%clk 0:00:10]} 40. R7xa6 {[%clk 0:00:19]}  Rxa6 {[%clk 0:00:10]} 41. Rxa6 {[%clk 0:00:20]}  Rxc3 {[%clk 0:00:11]} 42. Rd6 {[%clk 0:00:21]}  Ke7 {[%clk 0:00:10]} 43. Rxd5 {[%clk 0:00:21]}  Rc2 {[%clk 0:00:11]} 44. Rd6 {[%clk 0:00:21]}  f5 {[%clk 0:00:11]} 45. Kg3 {[%clk 0:00:22]}  g5 {[%clk 0:00:11]} 46. h4 {[%clk 0:00:19]}  f4+ {[%clk 0:00:11]} 47. Kh3 {[%clk 0:00:20]}  Rd2 {[%clk 0:00:05]} 48. Rxh6 {[%clk 0:00:20]}  Rxd4 {[%clk 0:00:05]} 49. hxg5 {[%clk 0:00:20]}  Rd5 {[%clk 0:00:06]} 50. g6 {[%clk 0:00:19]}  Rxc5 {[%clk 0:00:05]} 51. Kg4 {[%clk 0:00:17]}  Kf6 {[%clk 0:00:05]} 52. Kxf4 {[%clk 0:00:17]}  Rc4+ {[%clk 0:00:06]} 53. Kg3 {[%clk 0:00:17]}  Kg5 {[%clk 0:00:06]} 54. Rh8 {[%clk 0:00:16]}  Kxg6 {[%clk 0:00:06]} 55. Rd8 {[%clk 0:00:17]}  Rc7 {[%clk 0:00:06]} 56. f4 {[%clk 0:00:17]}  Rc3+ {[%clk 0:00:06]} 57. Kg4 {[%clk 0:00:17]}  Rc5 {[%clk 0:00:07]} 58. Rd6+ {[%clk 0:00:17]}  Kf7 {[%clk 0:00:07]} 59. g3 {[%clk 0:00:18]}  Rc2 {[%clk 0:00:08]} 60. Kg5 {[%clk 0:00:17]}  Rc3 {[%clk 0:00:09]} 61. g4 {[%clk 0:00:17]}  Rc5+ {[%clk 0:00:09]} 62. f5 {[%clk 0:00:18]}  Rc4 {[%clk 0:00:10]} 63. Rd7+ {[%clk 0:00:18]}  Kf8 {[%clk 0:00:10]} 64. Ra7 {[%clk 0:00:19]}  Rb4 {[%clk 0:00:11]} 65. f6 {[%clk 0:00:17]}  Rb1 {[%clk 0:00:10]} 66. Kg6 {[%clk 0:00:17]}  Rb8 {[%clk 0:00:09]} 67. Rh7 {[%clk 0:00:18]}  Rb5 {[%clk 0:00:07]} 68. Rh8# {[%clk 0:00:18]} 1-0


[Site "https://www.chess.com"]

[Event "Titled Tuesday Blitz February 14 Late 2023"]
[White "Gubajdullin, Alexei"]
[Black "Lopez Idarraga, Daniel Eduardo"]
[WhiteFideId "4141202"]
[BlackFideId "4405501"]
[WhiteElo "2285"]
[BlackElo "2009"]
[Result "0-1"]
[Round "06"]
[TimeControl "180+2"]
[Date "2023.02.14"]
[WhiteClock "0:00:10"]
[BlackClock "0:00:10"]

1. d4 {[%clk 0:02:59]}  Nf6 {[%clk 0:03:00]} 2. Nf3 {[%clk 0:02:58]}  e6 {[%clk 0:03:01]} 3. Bf4 {[%clk 0:02:58]}  d5 {[%clk 0:03:01]} 4. e3 {[%clk 0:02:58]}  Bd6 {[%clk 0:03:00]} 5. Ne5 {[%clk 0:02:56]}  O-O {[%clk 0:02:58]} 6. Nd2 {[%clk 0:02:54]}  b6 {[%clk 0:02:58]} 7. c3 {[%clk 0:02:54]}  Ba6 {[%clk 0:02:57]} 8. Bxa6 {[%clk 0:02:51]}  Nxa6 {[%clk 0:02:57]} 9. O-O {[%clk 0:02:50]}  Nb8 {[%clk 0:02:58]} 10. Qa4 {[%clk 0:02:49]}  Bxe5 {[%clk 0:02:57]} 11. Bxe5 {[%clk 0:02:48]}  Nbd7 {[%clk 0:02:52]} 12. Bg3 {[%clk 0:02:47]}  c5 {[%clk 0:02:52]} 13. Rfd1 {[%clk 0:02:45]}  c4 {[%clk 0:02:51]} 14. b3 {[%clk 0:02:43]}  cxb3 {[%clk 0:02:48]} 15. axb3 {[%clk 0:02:43]}  Nh5 {[%clk 0:02:42]} 16. Bd6 {[%clk 0:02:42]}  Re8 {[%clk 0:02:41]} 17. c4 {[%clk 0:02:42]}  dxc4 {[%clk 0:02:39]} 18. bxc4 {[%clk 0:02:40]}  Nf8 {[%clk 0:02:31]} 19. c5 {[%clk 0:02:37]}  bxc5 {[%clk 0:02:30]} 20. dxc5 {[%clk 0:02:37]}  Nf6 {[%clk 0:01:48]} 21. Ne4 {[%clk 0:02:29]}  Nd5 {[%clk 0:01:45]} 22. Rac1 {[%clk 0:02:24]}  a5 {[%clk 0:01:42]} 23. c6 {[%clk 0:02:22]}  f5 {[%clk 0:01:39]} 24. c7 {[%clk 0:02:20]}  Qd7 {[%clk 0:01:39]} 25. Qxd7 {[%clk 0:02:13]}  Nxd7 {[%clk 0:01:40]} 26. Nc3 {[%clk 0:02:11]}  N7f6 {[%clk 0:01:37]} 27. Nb5 {[%clk 0:02:08]}  Rec8 {[%clk 0:01:33]} 28. Be5 {[%clk 0:02:06]}  a4 {[%clk 0:01:31]} 29. Nd6 {[%clk 0:02:05]}  Rxc7 {[%clk 0:01:28]} 30. Rxc7 {[%clk 0:02:01]}  Nxc7 {[%clk 0:01:29]} 31. Nxf5 {[%clk 0:02:01]}  exf5 {[%clk 0:01:22]} 32. Bxc7 {[%clk 0:01:59]}  a3 {[%clk 0:01:23]} 33. Ra1 {[%clk 0:01:54]}  a2 {[%clk 0:01:23]} 34. h3 {[%clk 0:01:45]}  Rc8 {[%clk 0:01:19]} 35. Be5 {[%clk 0:01:44]}  Rc2 {[%clk 0:01:15]} 36. Bxf6 {[%clk 0:01:43]}  gxf6 {[%clk 0:01:12]} 37. g3 {[%clk 0:01:43]}  Kf7 {[%clk 0:01:12]} 38. Kg2 {[%clk 0:01:36]}  Ke6 {[%clk 0:01:13]} 39. Kf3 {[%clk 0:01:30]}  Kd5 {[%clk 0:01:12]} 40. g4 {[%clk 0:01:28]}  fxg4+ {[%clk 0:01:13]} 41. hxg4 {[%clk 0:01:28]}  Ke5 {[%clk 0:01:11]} 42. Rh1 {[%clk 0:01:21]}  Rb2 {[%clk 0:01:09]} 43. Rh5+ {[%clk 0:01:20]}  Kd6 {[%clk 0:01:04]} 44. Ra5 {[%clk 0:01:19]}  Kc6 {[%clk 0:01:04]} 45. Kg3 {[%clk 0:01:16]}  Kb6 {[%clk 0:01:04]} 46. Ra3 {[%clk 0:01:07]}  Kb5 {[%clk 0:01:03]} 47. f3 {[%clk 0:00:59]}  Kb4 {[%clk 0:01:03]} 48. Ra7 {[%clk 0:00:56]}  Kc3 {[%clk 0:01:03]} 49. Kf4 {[%clk 0:00:54]}  Rb4+ {[%clk 0:00:20]} 50. Kf5 {[%clk 0:00:51]}  Kb3 {[%clk 0:00:21]} 51. Rxa2 {[%clk 0:00:47]}  Kxa2 {[%clk 0:00:22]} 52. Kxf6 {[%clk 0:00:46]}  Kb3 {[%clk 0:00:19]} 53. f4 {[%clk 0:00:34]}  Kc4 {[%clk 0:00:18]} 54. Ke5 {[%clk 0:00:24]}  Kd3 {[%clk 0:00:16]} 55. f5 {[%clk 0:00:21]}  Rxg4 {[%clk 0:00:12]} 56. f6 {[%clk 0:00:18]}  Kxe3 {[%clk 0:00:10]} 57. Kf5 {[%clk 0:00:11]}  Rf4+ {[%clk 0:00:09]} 58. Kg5 {[%clk 0:00:12]}  Ke4 {[%clk 0:00:09]} 59. Kh6 {[%clk 0:00:11]}  Rxf6+ {[%clk 0:00:08]} 60. Kxh7 {[%clk 0:00:11]}  Kf5 {[%clk 0:00:09]} 61. Kg7 {[%clk 0:00:12]}  Kg5 {[%clk 0:00:09]} 62. Kh7 {[%clk 0:00:11]}  Rf7+ {[%clk 0:00:08]} 63. Kg8 {[%clk 0:00:10]}  Kg6 {[%clk 0:00:09]} 64. Kh8 {[%clk 0:00:10]}  Rf8# {[%clk 0:00:10]} 0-1


[Site "https://www.chess.com"]

[Event "Titled Tuesday Blitz February 14 Late 2023"]
[White "Janaszak, Dawid"]
[Black "Nunez V, Gustavo Eduardo"]
[WhiteFideId "1119206"]
[BlackFideId "4403690"]
[WhiteElo "2316"]
[BlackElo "2212"]
[Result "0-1"]
[Round "06"]
[TimeControl "180+2"]
[Date "2023.02.14"]
[WhiteClock "0:00:05"]
[BlackClock "0:00:13"]

1. d4 {[%clk 0:03:00]}  Nf6 {[%clk 0:02:59]} 2. Nc3 {[%clk 0:02:59]}  g6 {[%clk 0:02:57]} 3. e4 {[%clk 0:02:59]}  d6 {[%clk 0:02:57]} 4. Bf4 {[%clk 0:02:57]}  Bg7 {[%clk 0:02:58]} 5. Qd2 {[%clk 0:02:57]}  O-O {[%clk 0:02:54]} 6. Bh6 {[%clk 0:02:58]}  e5 {[%clk 0:02:51]} 7. Nge2 {[%clk 0:02:54]}  exd4 {[%clk 0:02:49]} 8. Nxd4 {[%clk 0:02:55]}  Re8 {[%clk 0:02:49]} 9. O-O-O {[%clk 0:02:38]}  Bxh6 {[%clk 0:02:42]} 10. Qxh6 {[%clk 0:02:38]}  Nxe4 {[%clk 0:02:40]} 11. Nxe4 {[%clk 0:02:34]}  Rxe4 {[%clk 0:02:41]} 12. h4 {[%clk 0:02:07]}  Qf6 {[%clk 0:02:36]} 13. Nb5 {[%clk 0:01:50]}  Na6 {[%clk 0:02:36]} 14. f3 {[%clk 0:01:42]}  Qf4+ {[%clk 0:02:35]} 15. Qxf4 {[%clk 0:01:41]}  Rxf4 {[%clk 0:02:36]} 16. Nc3 {[%clk 0:01:33]}  Be6 {[%clk 0:02:26]} 17. Bxa6 {[%clk 0:01:33]}  bxa6 {[%clk 0:02:27]} 18. b3 {[%clk 0:01:23]}  Rb8 {[%clk 0:02:20]} 19. Ne2 {[%clk 0:01:21]}  Rfb4 {[%clk 0:02:16]} 20. Nd4 {[%clk 0:01:21]}  Bd7 {[%clk 0:02:10]} 21. h5 {[%clk 0:01:19]}  a5 {[%clk 0:02:05]} 22. a4 {[%clk 0:01:18]}  c5 {[%clk 0:01:46]} 23. Ne2 {[%clk 0:01:13]}  c4 {[%clk 0:01:36]} 24. Rxd6 {[%clk 0:01:12]}  Bxa4 {[%clk 0:01:36]} 25. Rhd1 {[%clk 0:00:52]}  cxb3 {[%clk 0:01:34]} 26. Rd8+ {[%clk 0:00:35]}  Rxd8 {[%clk 0:01:14]} 27. Rxd8+ {[%clk 0:00:35]}  Kg7 {[%clk 0:01:15]} 28. cxb3 {[%clk 0:00:34]}  Bxb3 {[%clk 0:01:12]} 29. hxg6 {[%clk 0:00:31]}  hxg6 {[%clk 0:01:10]} 30. Rd7 {[%clk 0:00:29]}  a6 {[%clk 0:01:09]} 31. Kd2 {[%clk 0:00:26]}  a4 {[%clk 0:01:06]} 32. Ra7 {[%clk 0:00:24]}  Rb6 {[%clk 0:01:02]} 33. Rc7 {[%clk 0:00:10]}  a3 {[%clk 0:01:00]} 34. Rc5 {[%clk 0:00:10]}  a2 {[%clk 0:00:54]} 35. Ra5 {[%clk 0:00:09]}  Bc4 {[%clk 0:00:54]} 36. Nc3 {[%clk 0:00:09]}  Rb2+ {[%clk 0:00:54]} 37. Ke3 {[%clk 0:00:09]}  Rxg2 {[%clk 0:00:50]} 38. Kd4 {[%clk 0:00:09]}  Be6 {[%clk 0:00:38]} 39. Rxa6 {[%clk 0:00:09]}  Rd2+ {[%clk 0:00:31]} 40. Ke3 {[%clk 0:00:08]}  Rc2 {[%clk 0:00:30]} 41. Kd4 {[%clk 0:00:09]}  g5 {[%clk 0:00:20]} 42. Ra5 {[%clk 0:00:08]}  Kg6 {[%clk 0:00:20]} 43. Ra6 {[%clk 0:00:09]}  Kg7 {[%clk 0:00:20]} 44. Ra4 {[%clk 0:00:09]}  Rc1 {[%clk 0:00:19]} 45. Nxa2 {[%clk 0:00:09]}  Ra1 {[%clk 0:00:19]} 46. Nc3 {[%clk 0:00:08]}  Rf1 {[%clk 0:00:17]} 47. Ke3 {[%clk 0:00:08]}  Kg6 {[%clk 0:00:16]} 48. Ra6 {[%clk 0:00:08]}  Re1+ {[%clk 0:00:16]} 49. Kd2 {[%clk 0:00:07]}  Rh1 {[%clk 0:00:16]} 50. Ke3 {[%clk 0:00:08]}  Rh3 {[%clk 0:00:15]} 51. Kf2 {[%clk 0:00:07]}  g4 {[%clk 0:00:14]} 52. Ne4 {[%clk 0:00:04]}  Rxf3+ {[%clk 0:00:15]} 53. Ke2 {[%clk 0:00:05]}  Rf4 {[%clk 0:00:13]} 54. Nc5 {[%clk 0:00:05]}  Kf6 {[%clk 0:00:12]} 55. Nd7+ {[%clk 0:00:04]}  Ke7 {[%clk 0:00:12]} 56. Nc5 {[%clk 0:00:05]}  Bc4+ {[%clk 0:00:12]} 57. Ke3 {[%clk 0:00:05]}  Rf3+ {[%clk 0:00:12]} 58. Ke4 {[%clk 0:00:05]}  Bxa6 {[%clk 0:00:13]} 0-1


[Site "https://www.chess.com"]

[Event "Titled Tuesday Blitz February 14 Late 2023"]
[White "Vlassov, Nikolai"]
[Black "Fajdetic, Hrvoje"]
[WhiteFideId "4103360"]
[BlackFideId "14501945"]
[WhiteElo "2283"]
[BlackElo "2151"]
[Result "1-0"]
[Round "06"]
[TimeControl "180+2"]
[Date "2023.02.14"]
[WhiteClock "0:00:41"]
[BlackClock "0:00:03"]

1. e4 {[%clk 0:03:00]}  e6 {[%clk 0:02:58]} 2. d4 {[%clk 0:02:58]}  d5 {[%clk 0:02:58]} 3. exd5 {[%clk 0:02:59]}  exd5 {[%clk 0:02:58]} 4. Nf3 {[%clk 0:02:59]}  Bd6 {[%clk 0:02:57]} 5. c4 {[%clk 0:02:59]}  c6 {[%clk 0:02:57]} 6. Bd3 {[%clk 0:02:59]}  Ne7 {[%clk 0:02:56]} 7. O-O {[%clk 0:02:59]}  O-O {[%clk 0:02:55]} 8. Nc3 {[%clk 0:02:58]}  dxc4 {[%clk 0:02:52]} 9. Bxc4 {[%clk 0:02:58]}  Bg4 {[%clk 0:02:52]} 10. h3 {[%clk 0:02:58]}  Bh5 {[%clk 0:02:51]} 11. g4 {[%clk 0:02:58]}  Bg6 {[%clk 0:02:51]} 12. Ne5 {[%clk 0:02:58]}  Nd7 {[%clk 0:02:24]} 13. f4 {[%clk 0:02:57]}  Nxe5 {[%clk 0:02:24]} 14. dxe5 {[%clk 0:02:55]}  Bc5+ {[%clk 0:02:24]} 15. Kh2 {[%clk 0:02:51]}  h5 {[%clk 0:02:15]} 16. f5 {[%clk 0:02:48]}  Bh7 {[%clk 0:02:14]} 17. Bg5 {[%clk 0:02:27]}  Qc7 {[%clk 0:01:59]} 18. Qe2 {[%clk 0:02:20]}  b5 {[%clk 0:01:42]} 19. Bb3 {[%clk 0:02:18]}  b4 {[%clk 0:01:39]} 20. Na4 {[%clk 0:02:12]}  Bd4 {[%clk 0:01:39]} 21. Rae1 {[%clk 0:02:00]}  c5 {[%clk 0:01:23]} 22. Bf4 {[%clk 0:01:52]}  Qc6 {[%clk 0:01:02]} 23. Qe4 {[%clk 0:01:44]}  Qxe4 {[%clk 0:00:58]} 24. Rxe4 {[%clk 0:01:44]}  Kh8 {[%clk 0:00:48]} 25. Kg3 {[%clk 0:01:43]}  Rad8 {[%clk 0:00:34]} 26. Bg5 {[%clk 0:01:36]}  f6 {[%clk 0:00:24]} 27. exf6 {[%clk 0:01:35]}  gxf6 {[%clk 0:00:25]} 28. Bh6 {[%clk 0:01:22]}  Be5+ {[%clk 0:00:19]} 29. Kh4 {[%clk 0:01:14]}  Rg8 {[%clk 0:00:04]} 30. Nxc5 {[%clk 0:01:02]}  Rd4 {[%clk 0:00:03]} 31. Bxg8 {[%clk 0:00:49]}  Kxg8 {[%clk 0:00:02]} 32. Be3 {[%clk 0:00:43]}  Rxe4 {[%clk 0:00:02]} 33. Nxe4 {[%clk 0:00:43]}  hxg4 {[%clk 0:00:03]} 34. hxg4 {[%clk 0:00:42]}  Nd5 {[%clk 0:00:03]} 35. Bxa7 {[%clk 0:00:41]} 1-0


[Site "https://www.chess.com"]